{"text_format":"3","workbook":"xlsx","n_sheets":3,"sheets":["Müşteri Adayı Verileri","Tahmin Edilen Satışlar ","Aylık Ağırlıklı Tahmin"],"not_rendered":{"charts":1,"defined_names":10},"read":"whole","date_system":"1900"}

{"sheet":"Müşteri Adayı Verileri","index":0,"n_rows":9,"n_cols":10,"rows_kept":9}
[null,"Şirket Adı"]
[null,"Ayrıntılı Müşteri Adayı İzleyicisi"]
[null,{"$f":"TODAY()","v":"2022-04-07"}]
[{"$nulls":8},{"$f":"Şirket_Adı","v":"Şirket Adı"},"GİZLİ"]
[null,"Müşteri Adayı Adı","Müşteri Adayı İletişim Bilgileri","Müşteri Adayı \nKaynak","Müşteri Adayı \nBölge","Müşteri Adayı \nTür","Olası Fırsat","Satış \nOlasılığı","Tahmin \nKapanışı","Ağırlıklı \nTahmin"]
[null,"A. Datum Corporation",{"$nulls":3},"Stratejik",{"v":300000,"d":"₺300,000.00"},{"v":0.9,"d":"90%"},"Ocak",{"$f":"IFERROR(IF(MüşteriAdayıVerileri[[#This Row],[Satış \nOlasılığı]]<>\"\",MüşteriAdayıVerileri[[#This Row],[Satış \nOlasılığı]]*MüşteriAdayıVerileri[[#This Row],[Olası Fırsat]],\"\"),\"\")","v":{"v":270000,"d":"₺270,000.00"}}]
[null,"Adventure Works",{"$nulls":3},"Stratejik",{"v":200000,"d":"₺200,000.00"},{"v":0.1,"d":"10%"},"Şubat",{"$f":"IFERROR(IF(MüşteriAdayıVerileri[[#This Row],[Satış \nOlasılığı]]<>\"\",MüşteriAdayıVerileri[[#This Row],[Satış \nOlasılığı]]*MüşteriAdayıVerileri[[#This Row],[Olası Fırsat]],\"\"),\"\")","v":{"v":20000,"d":"₺20,000.00"}}]
[null,"Alpine Ski House",{"$nulls":3},"Taktik",{"v":100000,"d":"₺100,000.00"},{"v":0.2,"d":"20%"},"Mart",{"$f":"IFERROR(IF(MüşteriAdayıVerileri[[#This Row],[Satış \nOlasılığı]]<>\"\",MüşteriAdayıVerileri[[#This Row],[Satış \nOlasılığı]]*MüşteriAdayıVerileri[[#This Row],[Olası Fırsat]],\"\"),\"\")","v":{"v":20000,"d":"₺20,000.00"}}]
[null,"Toplam",{"$nulls":4},{"$f":"SUBTOTAL(109,MüşteriAdayıVerileri[Olası Fırsat])","v":{"v":600000,"d":"₺600,000.00"}},null,null,{"$f":"SUBTOTAL(109,MüşteriAdayıVerileri[Ağırlıklı \nTahmin])","v":{"v":310000,"d":"₺310,000.00"}}]

{"sheet":"Tahmin Edilen Satışlar ","index":1,"n_rows":21,"n_cols":14,"rows_kept":21,"merged":[[3,12,3,13]]}
[null,{"$f":"Şirket_Adı","v":"Şirket Adı"}]
[null,"Tahmin Edilen Satışlar"]
[null,{"$f":"İzleyiciTarihi","v":"2022-04-07"}]
[{"$nulls":11},{"$f":"Şirket_Adı","v":"Şirket Adı"},"GİZLİ"]
[null,"Müşteri Adayı adı","Ocak \nTahmin","Şubat \nTahmin","Mart \nTahmin","Nisan \nTahmin","May \nTahmin","Haziran \nTahmin","Temmuz Tahmini","Ağustos \nTahmin","Eylül \nTahmin","Ekim \nTahmin","Kasım \nTahmin","Aralık \nTahmin"]
[null,{"$f":"IFERROR(IF(AND(MüşteriAdayıVerileri[[#This Row],[Müşteri Adayı Adı]]<> \"\", ROW(TahminEdilenSatışlar[Müşteri Adayı adı])<>SonGirdi),MüşteriAdayıVerileri[Müşteri Adayı Adı], \"\"),\"\")","v":"A. Datum Corporation"},{"$f":"IFERROR(IF(MüşteriAdayıVerileri[[#This Row],[Tahmin \nKapanışı]] <>\"\",IF(MüşteriAdayıVerileri[[#This Row],[Tahmin \nKapanışı]]= \"Ocak\",MüşteriAdayıVerileri[Ağırlıklı \nTahmin],0),\"\"),\"\")","v":{"v":270000,"d":"₺270,000"}},{"$f":"IFERROR(IF(MüşteriAdayıVerileri[[#This Row],[Tahmin \nKapanışı]] <>\"\",IF(MüşteriAdayıVerileri[[#This Row],[Tahmin \nKapanışı]]= \"Şubat\",MüşteriAdayıVerileri[Ağırlıklı \nTahmin],0),\"\"),\"\")","v":{"v":0,"d":"₺0"}},{"$f":"IFERROR(IF(MüşteriAdayıVerileri[[#This Row],[Tahmin \nKapanışı]] <>\"\",IF(MüşteriAdayıVerileri[[#This Row],[Tahmin \nKapanışı]]= \"Mart\",MüşteriAdayıVerileri[Ağırlıklı \nTahmin],0),\"\"),\"\")","v":{"v":0,"d":"₺0"}},{"$f":"IFERROR(IF(MüşteriAdayıVerileri[[#This Row],[Tahmin \nKapanışı]] <>\"\",IF(MüşteriAdayıVerileri[[#This Row],[Tahmin \nKapanışı]]= \"Nisan\",MüşteriAdayıVerileri[Ağırlıklı \nTahmin],0),\"\"),\"\")","v":{"v":0,"d":"$0"}},{"$f":"IFERROR(IF(MüşteriAdayıVerileri[[#This Row],[Tahmin \nKapanışı]] <>\"\",IF(MüşteriAdayıVerileri[[#This Row],[Tahmin \nKapanışı]]= \"Mayıs\",MüşteriAdayıVerileri[Ağırlıklı \nTahmin],0),\"\"),\"\")","v":{"v":0,"d":"₺0"}},{"$f":"IFERROR(IF(MüşteriAdayıVerileri[[#This Row],[Tahmin \nKapanışı]] <>\"\",IF(MüşteriAdayıVerileri[[#This Row],[Tahmin \nKapanışı]]= \"Haziran\",MüşteriAdayıVerileri[Ağırlıklı \nTahmin],0),\"\"),\"\")","v":{"v":0,"d":"₺0"}},{"$f":"IFERROR(IF(MüşteriAdayıVerileri[[#This Row],[Tahmin \nKapanışı]] <>\"\",IF(MüşteriAdayıVerileri[[#This Row],[Tahmin \nKapanışı]]= \"Temmuz\",MüşteriAdayıVerileri[Ağırlıklı \nTahmin],0),\"\"),\"\")","v":{"v":0,"d":"₺0"}},{"$f":"IFERROR(IF(MüşteriAdayıVerileri[[#This Row],[Tahmin \nKapanışı]] <>\"\",IF(MüşteriAdayıVerileri[[#This Row],[Tahmin \nKapanışı]]= \"Ağustos\",MüşteriAdayıVerileri[Ağırlıklı \nTahmin],0),\"\"),\"\")","v":{"v":0,"d":"$0"}},{"$f":"IFERROR(IF(MüşteriAdayıVerileri[[#This Row],[Tahmin \nKapanışı]] <>\"\",IF(MüşteriAdayıVerileri[[#This Row],[Tahmin \nKapanışı]]= \"Eylül\",MüşteriAdayıVerileri[Ağırlıklı \nTahmin],0),\"\"),\"\")","v":{"v":0,"d":"₺0"}},{"$f":"IFERROR(IF(MüşteriAdayıVerileri[[#This Row],[Tahmin \nKapanışı]] <>\"\",IF(MüşteriAdayıVerileri[[#This Row],[Tahmin \nKapanışı]]= \"Ekim\",MüşteriAdayıVerileri[Ağırlıklı \nTahmin],0),\"\"),\"\")","v":{"v":0,"d":"₺0"}},{"$f":"IFERROR(IF(MüşteriAdayıVerileri[[#This Row],[Tahmin \nKapanışı]] <>\"\",IF(MüşteriAdayıVerileri[[#This Row],[Tahmin \nKapanışı]]= \"Kasım\",MüşteriAdayıVerileri[Ağırlıklı \nTahmin],0),\"\"),\"\")","v":{"v":0,"d":"₺0"}},{"$f":"IFERROR(IF(MüşteriAdayıVerileri[[#This Row],[Tahmin \nKapanışı]] <>\"\",IF(MüşteriAdayıVerileri[[#This Row],[Tahmin \nKapanışı]]= \"Aralık\",MüşteriAdayıVerileri[Ağırlıklı \nTahmin],0),\"\"),\"\")","v":{"v":0,"d":"₺0"}}]
[null,{"$f":"IFERROR(IF(AND(MüşteriAdayıVerileri[[#This Row],[Müşteri Adayı Adı]]<> \"\", ROW(TahminEdilenSatışlar[Müşteri Adayı adı])<>SonGirdi),MüşteriAdayıVerileri[Müşteri Adayı Adı], \"\"),\"\")","v":"Adventure Works"},{"$f":"IFERROR(IF(MüşteriAdayıVerileri[[#This Row],[Tahmin \nKapanışı]] <>\"\",IF(MüşteriAdayıVerileri[[#This Row],[Tahmin \nKapanışı]]= \"Ocak\",MüşteriAdayıVerileri[Ağırlıklı \nTahmin],0),\"\"),\"\")","v":{"v":0,"d":"₺0"}},{"$f":"IFERROR(IF(MüşteriAdayıVerileri[[#This Row],[Tahmin \nKapanışı]] <>\"\",IF(MüşteriAdayıVerileri[[#This Row],[Tahmin \nKapanışı]]= \"Şubat\",MüşteriAdayıVerileri[Ağırlıklı \nTahmin],0),\"\"),\"\")","v":{"v":20000,"d":"₺20,000"}},{"$f":"IFERROR(IF(MüşteriAdayıVerileri[[#This Row],[Tahmin \nKapanışı]] <>\"\",IF(MüşteriAdayıVerileri[[#This Row],[Tahmin \nKapanışı]]= \"Mart\",MüşteriAdayıVerileri[Ağırlıklı \nTahmin],0),\"\"),\"\")","v":{"v":0,"d":"₺0"}},{"$f":"IFERROR(IF(MüşteriAdayıVerileri[[#This Row],[Tahmin \nKapanışı]] <>\"\",IF(MüşteriAdayıVerileri[[#This Row],[Tahmin \nKapanışı]]= \"Nisan\",MüşteriAdayıVerileri[Ağırlıklı \nTahmin],0),\"\"),\"\")","v":{"v":0,"d":"$0"}},{"$f":"IFERROR(IF(MüşteriAdayıVerileri[[#This Row],[Tahmin \nKapanışı]] <>\"\",IF(MüşteriAdayıVerileri[[#This Row],[Tahmin \nKapanışı]]= \"Mayıs\",MüşteriAdayıVerileri[Ağırlıklı \nTahmin],0),\"\"),\"\")","v":{"v":0,"d":"₺0"}},{"$f":"IFERROR(IF(MüşteriAdayıVerileri[[#This Row],[Tahmin \nKapanışı]] <>\"\",IF(MüşteriAdayıVerileri[[#This Row],[Tahmin \nKapanışı]]= \"Haziran\",MüşteriAdayıVerileri[Ağırlıklı \nTahmin],0),\"\"),\"\")","v":{"v":0,"d":"₺0"}},{"$f":"IFERROR(IF(MüşteriAdayıVerileri[[#This Row],[Tahmin \nKapanışı]] <>\"\",IF(MüşteriAdayıVerileri[[#This Row],[Tahmin \nKapanışı]]= \"Temmuz\",MüşteriAdayıVerileri[Ağırlıklı \nTahmin],0),\"\"),\"\")","v":{"v":0,"d":"₺0"}},{"$f":"IFERROR(IF(MüşteriAdayıVerileri[[#This Row],[Tahmin \nKapanışı]] <>\"\",IF(MüşteriAdayıVerileri[[#This Row],[Tahmin \nKapanışı]]= \"Ağustos\",MüşteriAdayıVerileri[Ağırlıklı \nTahmin],0),\"\"),\"\")","v":{"v":0,"d":"$0"}},{"$f":"IFERROR(IF(MüşteriAdayıVerileri[[#This Row],[Tahmin \nKapanışı]] <>\"\",IF(MüşteriAdayıVerileri[[#This Row],[Tahmin \nKapanışı]]= \"Eylül\",MüşteriAdayıVerileri[Ağırlıklı \nTahmin],0),\"\"),\"\")","v":{"v":0,"d":"₺0"}},{"$f":"IFERROR(IF(MüşteriAdayıVerileri[[#This Row],[Tahmin \nKapanışı]] <>\"\",IF(MüşteriAdayıVerileri[[#This Row],[Tahmin \nKapanışı]]= \"Ekim\",MüşteriAdayıVerileri[Ağırlıklı \nTahmin],0),\"\"),\"\")","v":{"v":0,"d":"₺0"}},{"$f":"IFERROR(IF(MüşteriAdayıVerileri[[#This Row],[Tahmin \nKapanışı]] <>\"\",IF(MüşteriAdayıVerileri[[#This Row],[Tahmin \nKapanışı]]= \"Kasım\",MüşteriAdayıVerileri[Ağırlıklı \nTahmin],0),\"\"),\"\")","v":{"v":0,"d":"₺0"}},{"$f":"IFERROR(IF(MüşteriAdayıVerileri[[#This Row],[Tahmin \nKapanışı]] <>\"\",IF(MüşteriAdayıVerileri[[#This Row],[Tahmin \nKapanışı]]= \"Aralık\",MüşteriAdayıVerileri[Ağırlıklı \nTahmin],0),\"\"),\"\")","v":{"v":0,"d":"₺0"}}]
[null,{"$f":"IFERROR(IF(AND(MüşteriAdayıVerileri[[#This Row],[Müşteri Adayı Adı]]<> \"\", ROW(TahminEdilenSatışlar[Müşteri Adayı adı])<>SonGirdi),MüşteriAdayıVerileri[Müşteri Adayı Adı], \"\"),\"\")","v":"Alpine Ski House"},{"$f":"IFERROR(IF(MüşteriAdayıVerileri[[#This Row],[Tahmin \nKapanışı]] <>\"\",IF(MüşteriAdayıVerileri[[#This Row],[Tahmin \nKapanışı]]= \"Ocak\",MüşteriAdayıVerileri[Ağırlıklı \nTahmin],0),\"\"),\"\")","v":{"v":0,"d":"₺0"}},{"$f":"IFERROR(IF(MüşteriAdayıVerileri[[#This Row],[Tahmin \nKapanışı]] <>\"\",IF(MüşteriAdayıVerileri[[#This Row],[Tahmin \nKapanışı]]= \"Şubat\",MüşteriAdayıVerileri[Ağırlıklı \nTahmin],0),\"\"),\"\")","v":{"v":0,"d":"₺0"}},{"$f":"IFERROR(IF(MüşteriAdayıVerileri[[#This Row],[Tahmin \nKapanışı]] <>\"\",IF(MüşteriAdayıVerileri[[#This Row],[Tahmin \nKapanışı]]= \"Mart\",MüşteriAdayıVerileri[Ağırlıklı \nTahmin],0),\"\"),\"\")","v":{"v":20000,"d":"₺20,000"}},{"$f":"IFERROR(IF(MüşteriAdayıVerileri[[#This Row],[Tahmin \nKapanışı]] <>\"\",IF(MüşteriAdayıVerileri[[#This Row],[Tahmin \nKapanışı]]= \"Nisan\",MüşteriAdayıVerileri[Ağırlıklı \nTahmin],0),\"\"),\"\")","v":{"v":0,"d":"$0"}},{"$f":"IFERROR(IF(MüşteriAdayıVerileri[[#This Row],[Tahmin \nKapanışı]] <>\"\",IF(MüşteriAdayıVerileri[[#This Row],[Tahmin \nKapanışı]]= \"Mayıs\",MüşteriAdayıVerileri[Ağırlıklı \nTahmin],0),\"\"),\"\")","v":{"v":0,"d":"₺0"}},{"$f":"IFERROR(IF(MüşteriAdayıVerileri[[#This Row],[Tahmin \nKapanışı]] <>\"\",IF(MüşteriAdayıVerileri[[#This Row],[Tahmin \nKapanışı]]= \"Haziran\",MüşteriAdayıVerileri[Ağırlıklı \nTahmin],0),\"\"),\"\")","v":{"v":0,"d":"₺0"}},{"$f":"IFERROR(IF(MüşteriAdayıVerileri[[#This Row],[Tahmin \nKapanışı]] <>\"\",IF(MüşteriAdayıVerileri[[#This Row],[Tahmin \nKapanışı]]= \"Temmuz\",MüşteriAdayıVerileri[Ağırlıklı \nTahmin],0),\"\"),\"\")","v":{"v":0,"d":"₺0"}},{"$f":"IFERROR(IF(MüşteriAdayıVerileri[[#This Row],[Tahmin \nKapanışı]] <>\"\",IF(MüşteriAdayıVerileri[[#This Row],[Tahmin \nKapanışı]]= \"Ağustos\",MüşteriAdayıVerileri[Ağırlıklı \nTahmin],0),\"\"),\"\")","v":{"v":0,"d":"$0"}},{"$f":"IFERROR(IF(MüşteriAdayıVerileri[[#This Row],[Tahmin \nKapanışı]] <>\"\",IF(MüşteriAdayıVerileri[[#This Row],[Tahmin \nKapanışı]]= \"Eylül\",MüşteriAdayıVerileri[Ağırlıklı \nTahmin],0),\"\"),\"\")","v":{"v":0,"d":"₺0"}},{"$f":"IFERROR(IF(MüşteriAdayıVerileri[[#This Row],[Tahmin \nKapanışı]] <>\"\",IF(MüşteriAdayıVerileri[[#This Row],[Tahmin \nKapanışı]]= \"Ekim\",MüşteriAdayıVerileri[Ağırlıklı \nTahmin],0),\"\"),\"\")","v":{"v":0,"d":"₺0"}},{"$f":"IFERROR(IF(MüşteriAdayıVerileri[[#This Row],[Tahmin \nKapanışı]] <>\"\",IF(MüşteriAdayıVerileri[[#This Row],[Tahmin \nKapanışı]]= \"Kasım\",MüşteriAdayıVerileri[Ağırlıklı \nTahmin],0),\"\"),\"\")","v":{"v":0,"d":"₺0"}},{"$f":"IFERROR(IF(MüşteriAdayıVerileri[[#This Row],[Tahmin \nKapanışı]] <>\"\",IF(MüşteriAdayıVerileri[[#This Row],[Tahmin \nKapanışı]]= \"Aralık\",MüşteriAdayıVerileri[Ağırlıklı \nTahmin],0),\"\"),\"\")","v":{"v":0,"d":"₺0"}}]
[null,{"$f":"IFERROR(IF(AND(MüşteriAdayıVerileri[[#This Row],[Müşteri Adayı Adı]]<> \"\", ROW(TahminEdilenSatışlar[Müşteri Adayı adı])<>SonGirdi),MüşteriAdayıVerileri[Müşteri Adayı Adı], \"\"),\"\")","v":""},{"$f":"IFERROR(IF(MüşteriAdayıVerileri[[#This Row],[Tahmin \nKapanışı]] <>\"\",IF(MüşteriAdayıVerileri[[#This Row],[Tahmin \nKapanışı]]= \"Ocak\",MüşteriAdayıVerileri[Ağırlıklı \nTahmin],0),\"\"),\"\")","v":""},{"$f":"IFERROR(IF(MüşteriAdayıVerileri[[#This Row],[Tahmin \nKapanışı]] <>\"\",IF(MüşteriAdayıVerileri[[#This Row],[Tahmin \nKapanışı]]= \"Şubat\",MüşteriAdayıVerileri[Ağırlıklı \nTahmin],0),\"\"),\"\")","v":""},{"$f":"IFERROR(IF(MüşteriAdayıVerileri[[#This Row],[Tahmin \nKapanışı]] <>\"\",IF(MüşteriAdayıVerileri[[#This Row],[Tahmin \nKapanışı]]= \"Mart\",MüşteriAdayıVerileri[Ağırlıklı \nTahmin],0),\"\"),\"\")","v":""},{"$f":"IFERROR(IF(MüşteriAdayıVerileri[[#This Row],[Tahmin \nKapanışı]] <>\"\",IF(MüşteriAdayıVerileri[[#This Row],[Tahmin \nKapanışı]]= \"Nisan\",MüşteriAdayıVerileri[Ağırlıklı \nTahmin],0),\"\"),\"\")","v":""},{"$f":"IFERROR(IF(MüşteriAdayıVerileri[[#This Row],[Tahmin \nKapanışı]] <>\"\",IF(MüşteriAdayıVerileri[[#This Row],[Tahmin \nKapanışı]]= \"Mayıs\",MüşteriAdayıVerileri[Ağırlıklı \nTahmin],0),\"\"),\"\")","v":""},{"$f":"IFERROR(IF(MüşteriAdayıVerileri[[#This Row],[Tahmin \nKapanışı]] <>\"\",IF(MüşteriAdayıVerileri[[#This Row],[Tahmin \nKapanışı]]= \"Haziran\",MüşteriAdayıVerileri[Ağırlıklı \nTahmin],0),\"\"),\"\")","v":""},{"$f":"IFERROR(IF(MüşteriAdayıVerileri[[#This Row],[Tahmin \nKapanışı]] <>\"\",IF(MüşteriAdayıVerileri[[#This Row],[Tahmin \nKapanışı]]= \"Temmuz\",MüşteriAdayıVerileri[Ağırlıklı \nTahmin],0),\"\"),\"\")","v":""},{"$f":"IFERROR(IF(MüşteriAdayıVerileri[[#This Row],[Tahmin \nKapanışı]] <>\"\",IF(MüşteriAdayıVerileri[[#This Row],[Tahmin \nKapanışı]]= \"Ağustos\",MüşteriAdayıVerileri[Ağırlıklı \nTahmin],0),\"\"),\"\")","v":""},{"$f":"IFERROR(IF(MüşteriAdayıVerileri[[#This Row],[Tahmin \nKapanışı]] <>\"\",IF(MüşteriAdayıVerileri[[#This Row],[Tahmin \nKapanışı]]= \"Eylül\",MüşteriAdayıVerileri[Ağırlıklı \nTahmin],0),\"\"),\"\")","v":""},{"$f":"IFERROR(IF(MüşteriAdayıVerileri[[#This Row],[Tahmin \nKapanışı]] <>\"\",IF(MüşteriAdayıVerileri[[#This Row],[Tahmin \nKapanışı]]= \"Ekim\",MüşteriAdayıVerileri[Ağırlıklı \nTahmin],0),\"\"),\"\")","v":""},{"$f":"IFERROR(IF(MüşteriAdayıVerileri[[#This Row],[Tahmin \nKapanışı]] <>\"\",IF(MüşteriAdayıVerileri[[#This Row],[Tahmin \nKapanışı]]= \"Kasım\",MüşteriAdayıVerileri[Ağırlıklı \nTahmin],0),\"\"),\"\")","v":""},{"$f":"IFERROR(IF(MüşteriAdayıVerileri[[#This Row],[Tahmin \nKapanışı]] <>\"\",IF(MüşteriAdayıVerileri[[#This Row],[Tahmin \nKapanışı]]= \"Aralık\",MüşteriAdayıVerileri[Ağırlıklı \nTahmin],0),\"\"),\"\")","v":""}]
[null,{"$f":"IFERROR(IF(AND(MüşteriAdayıVerileri[[#This Row],[Müşteri Adayı Adı]]<> \"\", ROW(TahminEdilenSatışlar[Müşteri Adayı adı])<>SonGirdi),MüşteriAdayıVerileri[Müşteri Adayı Adı], \"\"),\"\")","v":""},{"$f":"IFERROR(IF(MüşteriAdayıVerileri[[#This Row],[Tahmin \nKapanışı]] <>\"\",IF(MüşteriAdayıVerileri[[#This Row],[Tahmin \nKapanışı]]= \"Ocak\",MüşteriAdayıVerileri[Ağırlıklı \nTahmin],0),\"\"),\"\")","v":""},{"$f":"IFERROR(IF(MüşteriAdayıVerileri[[#This Row],[Tahmin \nKapanışı]] <>\"\",IF(MüşteriAdayıVerileri[[#This Row],[Tahmin \nKapanışı]]= \"Şubat\",MüşteriAdayıVerileri[Ağırlıklı \nTahmin],0),\"\"),\"\")","v":""},{"$f":"IFERROR(IF(MüşteriAdayıVerileri[[#This Row],[Tahmin \nKapanışı]] <>\"\",IF(MüşteriAdayıVerileri[[#This Row],[Tahmin \nKapanışı]]= \"Mart\",MüşteriAdayıVerileri[Ağırlıklı \nTahmin],0),\"\"),\"\")","v":""},{"$f":"IFERROR(IF(MüşteriAdayıVerileri[[#This Row],[Tahmin \nKapanışı]] <>\"\",IF(MüşteriAdayıVerileri[[#This Row],[Tahmin \nKapanışı]]= \"Nisan\",MüşteriAdayıVerileri[Ağırlıklı \nTahmin],0),\"\"),\"\")","v":""},{"$f":"IFERROR(IF(MüşteriAdayıVerileri[[#This Row],[Tahmin \nKapanışı]] <>\"\",IF(MüşteriAdayıVerileri[[#This Row],[Tahmin \nKapanışı]]= \"Mayıs\",MüşteriAdayıVerileri[Ağırlıklı \nTahmin],0),\"\"),\"\")","v":""},{"$f":"IFERROR(IF(MüşteriAdayıVerileri[[#This Row],[Tahmin \nKapanışı]] <>\"\",IF(MüşteriAdayıVerileri[[#This Row],[Tahmin \nKapanışı]]= \"Haziran\",MüşteriAdayıVerileri[Ağırlıklı \nTahmin],0),\"\"),\"\")","v":""},{"$f":"IFERROR(IF(MüşteriAdayıVerileri[[#This Row],[Tahmin \nKapanışı]] <>\"\",IF(MüşteriAdayıVerileri[[#This Row],[Tahmin \nKapanışı]]= \"Temmuz\",MüşteriAdayıVerileri[Ağırlıklı \nTahmin],0),\"\"),\"\")","v":""},{"$f":"IFERROR(IF(MüşteriAdayıVerileri[[#This Row],[Tahmin \nKapanışı]] <>\"\",IF(MüşteriAdayıVerileri[[#This Row],[Tahmin \nKapanışı]]= \"Ağustos\",MüşteriAdayıVerileri[Ağırlıklı \nTahmin],0),\"\"),\"\")","v":""},{"$f":"IFERROR(IF(MüşteriAdayıVerileri[[#This Row],[Tahmin \nKapanışı]] <>\"\",IF(MüşteriAdayıVerileri[[#This Row],[Tahmin \nKapanışı]]= \"Eylül\",MüşteriAdayıVerileri[Ağırlıklı \nTahmin],0),\"\"),\"\")","v":""},{"$f":"IFERROR(IF(MüşteriAdayıVerileri[[#This Row],[Tahmin \nKapanışı]] <>\"\",IF(MüşteriAdayıVerileri[[#This Row],[Tahmin \nKapanışı]]= \"Ekim\",MüşteriAdayıVerileri[Ağırlıklı \nTahmin],0),\"\"),\"\")","v":""},{"$f":"IFERROR(IF(MüşteriAdayıVerileri[[#This Row],[Tahmin \nKapanışı]] <>\"\",IF(MüşteriAdayıVerileri[[#This Row],[Tahmin \nKapanışı]]= \"Kasım\",MüşteriAdayıVerileri[Ağırlıklı \nTahmin],0),\"\"),\"\")","v":""},{"$f":"IFERROR(IF(MüşteriAdayıVerileri[[#This Row],[Tahmin \nKapanışı]] <>\"\",IF(MüşteriAdayıVerileri[[#This Row],[Tahmin \nKapanışı]]= \"Aralık\",MüşteriAdayıVerileri[Ağırlıklı \nTahmin],0),\"\"),\"\")","v":""}]
[null,{"$f":"IFERROR(IF(AND(MüşteriAdayıVerileri[[#This Row],[Müşteri Adayı Adı]]<> \"\", ROW(TahminEdilenSatışlar[Müşteri Adayı adı])<>SonGirdi),MüşteriAdayıVerileri[Müşteri Adayı Adı], \"\"),\"\")","v":""},{"$f":"IFERROR(IF(MüşteriAdayıVerileri[[#This Row],[Tahmin \nKapanışı]] <>\"\",IF(MüşteriAdayıVerileri[[#This Row],[Tahmin \nKapanışı]]= \"Ocak\",MüşteriAdayıVerileri[Ağırlıklı \nTahmin],0),\"\"),\"\")","v":""},{"$f":"IFERROR(IF(MüşteriAdayıVerileri[[#This Row],[Tahmin \nKapanışı]] <>\"\",IF(MüşteriAdayıVerileri[[#This Row],[Tahmin \nKapanışı]]= \"Şubat\",MüşteriAdayıVerileri[Ağırlıklı \nTahmin],0),\"\"),\"\")","v":""},{"$f":"IFERROR(IF(MüşteriAdayıVerileri[[#This Row],[Tahmin \nKapanışı]] <>\"\",IF(MüşteriAdayıVerileri[[#This Row],[Tahmin \nKapanışı]]= \"Mart\",MüşteriAdayıVerileri[Ağırlıklı \nTahmin],0),\"\"),\"\")","v":""},{"$f":"IFERROR(IF(MüşteriAdayıVerileri[[#This Row],[Tahmin \nKapanışı]] <>\"\",IF(MüşteriAdayıVerileri[[#This Row],[Tahmin \nKapanışı]]= \"Nisan\",MüşteriAdayıVerileri[Ağırlıklı \nTahmin],0),\"\"),\"\")","v":""},{"$f":"IFERROR(IF(MüşteriAdayıVerileri[[#This Row],[Tahmin \nKapanışı]] <>\"\",IF(MüşteriAdayıVerileri[[#This Row],[Tahmin \nKapanışı]]= \"Mayıs\",MüşteriAdayıVerileri[Ağırlıklı \nTahmin],0),\"\"),\"\")","v":""},{"$f":"IFERROR(IF(MüşteriAdayıVerileri[[#This Row],[Tahmin \nKapanışı]] <>\"\",IF(MüşteriAdayıVerileri[[#This Row],[Tahmin \nKapanışı]]= \"Haziran\",MüşteriAdayıVerileri[Ağırlıklı \nTahmin],0),\"\"),\"\")","v":""},{"$f":"IFERROR(IF(MüşteriAdayıVerileri[[#This Row],[Tahmin \nKapanışı]] <>\"\",IF(MüşteriAdayıVerileri[[#This Row],[Tahmin \nKapanışı]]= \"Temmuz\",MüşteriAdayıVerileri[Ağırlıklı \nTahmin],0),\"\"),\"\")","v":""},{"$f":"IFERROR(IF(MüşteriAdayıVerileri[[#This Row],[Tahmin \nKapanışı]] <>\"\",IF(MüşteriAdayıVerileri[[#This Row],[Tahmin \nKapanışı]]= \"Ağustos\",MüşteriAdayıVerileri[Ağırlıklı \nTahmin],0),\"\"),\"\")","v":""},{"$f":"IFERROR(IF(MüşteriAdayıVerileri[[#This Row],[Tahmin \nKapanışı]] <>\"\",IF(MüşteriAdayıVerileri[[#This Row],[Tahmin \nKapanışı]]= \"Eylül\",MüşteriAdayıVerileri[Ağırlıklı \nTahmin],0),\"\"),\"\")","v":""},{"$f":"IFERROR(IF(MüşteriAdayıVerileri[[#This Row],[Tahmin \nKapanışı]] <>\"\",IF(MüşteriAdayıVerileri[[#This Row],[Tahmin \nKapanışı]]= \"Ekim\",MüşteriAdayıVerileri[Ağırlıklı \nTahmin],0),\"\"),\"\")","v":""},{"$f":"IFERROR(IF(MüşteriAdayıVerileri[[#This Row],[Tahmin \nKapanışı]] <>\"\",IF(MüşteriAdayıVerileri[[#This Row],[Tahmin \nKapanışı]]= \"Kasım\",MüşteriAdayıVerileri[Ağırlıklı \nTahmin],0),\"\"),\"\")","v":""},{"$f":"IFERROR(IF(MüşteriAdayıVerileri[[#This Row],[Tahmin \nKapanışı]] <>\"\",IF(MüşteriAdayıVerileri[[#This Row],[Tahmin \nKapanışı]]= \"Aralık\",MüşteriAdayıVerileri[Ağırlıklı \nTahmin],0),\"\"),\"\")","v":""}]
[null,{"$f":"IFERROR(IF(AND(MüşteriAdayıVerileri[[#This Row],[Müşteri Adayı Adı]]<> \"\", ROW(TahminEdilenSatışlar[Müşteri Adayı adı])<>SonGirdi),MüşteriAdayıVerileri[Müşteri Adayı Adı], \"\"),\"\")","v":""},{"$f":"IFERROR(IF(MüşteriAdayıVerileri[[#This Row],[Tahmin \nKapanışı]] <>\"\",IF(MüşteriAdayıVerileri[[#This Row],[Tahmin \nKapanışı]]= \"Ocak\",MüşteriAdayıVerileri[Ağırlıklı \nTahmin],0),\"\"),\"\")","v":""},{"$f":"IFERROR(IF(MüşteriAdayıVerileri[[#This Row],[Tahmin \nKapanışı]] <>\"\",IF(MüşteriAdayıVerileri[[#This Row],[Tahmin \nKapanışı]]= \"Şubat\",MüşteriAdayıVerileri[Ağırlıklı \nTahmin],0),\"\"),\"\")","v":""},{"$f":"IFERROR(IF(MüşteriAdayıVerileri[[#This Row],[Tahmin \nKapanışı]] <>\"\",IF(MüşteriAdayıVerileri[[#This Row],[Tahmin \nKapanışı]]= \"Mart\",MüşteriAdayıVerileri[Ağırlıklı \nTahmin],0),\"\"),\"\")","v":""},{"$f":"IFERROR(IF(MüşteriAdayıVerileri[[#This Row],[Tahmin \nKapanışı]] <>\"\",IF(MüşteriAdayıVerileri[[#This Row],[Tahmin \nKapanışı]]= \"Nisan\",MüşteriAdayıVerileri[Ağırlıklı \nTahmin],0),\"\"),\"\")","v":""},{"$f":"IFERROR(IF(MüşteriAdayıVerileri[[#This Row],[Tahmin \nKapanışı]] <>\"\",IF(MüşteriAdayıVerileri[[#This Row],[Tahmin \nKapanışı]]= \"Mayıs\",MüşteriAdayıVerileri[Ağırlıklı \nTahmin],0),\"\"),\"\")","v":""},{"$f":"IFERROR(IF(MüşteriAdayıVerileri[[#This Row],[Tahmin \nKapanışı]] <>\"\",IF(MüşteriAdayıVerileri[[#This Row],[Tahmin \nKapanışı]]= \"Haziran\",MüşteriAdayıVerileri[Ağırlıklı \nTahmin],0),\"\"),\"\")","v":""},{"$f":"IFERROR(IF(MüşteriAdayıVerileri[[#This Row],[Tahmin \nKapanışı]] <>\"\",IF(MüşteriAdayıVerileri[[#This Row],[Tahmin \nKapanışı]]= \"Temmuz\",MüşteriAdayıVerileri[Ağırlıklı \nTahmin],0),\"\"),\"\")","v":""},{"$f":"IFERROR(IF(MüşteriAdayıVerileri[[#This Row],[Tahmin \nKapanışı]] <>\"\",IF(MüşteriAdayıVerileri[[#This Row],[Tahmin \nKapanışı]]= \"Ağustos\",MüşteriAdayıVerileri[Ağırlıklı \nTahmin],0),\"\"),\"\")","v":""},{"$f":"IFERROR(IF(MüşteriAdayıVerileri[[#This Row],[Tahmin \nKapanışı]] <>\"\",IF(MüşteriAdayıVerileri[[#This Row],[Tahmin \nKapanışı]]= \"Eylül\",MüşteriAdayıVerileri[Ağırlıklı \nTahmin],0),\"\"),\"\")","v":""},{"$f":"IFERROR(IF(MüşteriAdayıVerileri[[#This Row],[Tahmin \nKapanışı]] <>\"\",IF(MüşteriAdayıVerileri[[#This Row],[Tahmin \nKapanışı]]= \"Ekim\",MüşteriAdayıVerileri[Ağırlıklı \nTahmin],0),\"\"),\"\")","v":""},{"$f":"IFERROR(IF(MüşteriAdayıVerileri[[#This Row],[Tahmin \nKapanışı]] <>\"\",IF(MüşteriAdayıVerileri[[#This Row],[Tahmin \nKapanışı]]= \"Kasım\",MüşteriAdayıVerileri[Ağırlıklı \nTahmin],0),\"\"),\"\")","v":""},{"$f":"IFERROR(IF(MüşteriAdayıVerileri[[#This Row],[Tahmin \nKapanışı]] <>\"\",IF(MüşteriAdayıVerileri[[#This Row],[Tahmin \nKapanışı]]= \"Aralık\",MüşteriAdayıVerileri[Ağırlıklı \nTahmin],0),\"\"),\"\")","v":""}]
[null,{"$f":"IFERROR(IF(AND(MüşteriAdayıVerileri[[#This Row],[Müşteri Adayı Adı]]<> \"\", ROW(TahminEdilenSatışlar[Müşteri Adayı adı])<>SonGirdi),MüşteriAdayıVerileri[Müşteri Adayı Adı], \"\"),\"\")","v":""},{"$f":"IFERROR(IF(MüşteriAdayıVerileri[[#This Row],[Tahmin \nKapanışı]] <>\"\",IF(MüşteriAdayıVerileri[[#This Row],[Tahmin \nKapanışı]]= \"Ocak\",MüşteriAdayıVerileri[Ağırlıklı \nTahmin],0),\"\"),\"\")","v":""},{"$f":"IFERROR(IF(MüşteriAdayıVerileri[[#This Row],[Tahmin \nKapanışı]] <>\"\",IF(MüşteriAdayıVerileri[[#This Row],[Tahmin \nKapanışı]]= \"Şubat\",MüşteriAdayıVerileri[Ağırlıklı \nTahmin],0),\"\"),\"\")","v":""},{"$f":"IFERROR(IF(MüşteriAdayıVerileri[[#This Row],[Tahmin \nKapanışı]] <>\"\",IF(MüşteriAdayıVerileri[[#This Row],[Tahmin \nKapanışı]]= \"Mart\",MüşteriAdayıVerileri[Ağırlıklı \nTahmin],0),\"\"),\"\")","v":""},{"$f":"IFERROR(IF(MüşteriAdayıVerileri[[#This Row],[Tahmin \nKapanışı]] <>\"\",IF(MüşteriAdayıVerileri[[#This Row],[Tahmin \nKapanışı]]= \"Nisan\",MüşteriAdayıVerileri[Ağırlıklı \nTahmin],0),\"\"),\"\")","v":""},{"$f":"IFERROR(IF(MüşteriAdayıVerileri[[#This Row],[Tahmin \nKapanışı]] <>\"\",IF(MüşteriAdayıVerileri[[#This Row],[Tahmin \nKapanışı]]= \"Mayıs\",MüşteriAdayıVerileri[Ağırlıklı \nTahmin],0),\"\"),\"\")","v":""},{"$f":"IFERROR(IF(MüşteriAdayıVerileri[[#This Row],[Tahmin \nKapanışı]] <>\"\",IF(MüşteriAdayıVerileri[[#This Row],[Tahmin \nKapanışı]]= \"Haziran\",MüşteriAdayıVerileri[Ağırlıklı \nTahmin],0),\"\"),\"\")","v":""},{"$f":"IFERROR(IF(MüşteriAdayıVerileri[[#This Row],[Tahmin \nKapanışı]] <>\"\",IF(MüşteriAdayıVerileri[[#This Row],[Tahmin \nKapanışı]]= \"Temmuz\",MüşteriAdayıVerileri[Ağırlıklı \nTahmin],0),\"\"),\"\")","v":""},{"$f":"IFERROR(IF(MüşteriAdayıVerileri[[#This Row],[Tahmin \nKapanışı]] <>\"\",IF(MüşteriAdayıVerileri[[#This Row],[Tahmin \nKapanışı]]= \"Ağustos\",MüşteriAdayıVerileri[Ağırlıklı \nTahmin],0),\"\"),\"\")","v":""},{"$f":"IFERROR(IF(MüşteriAdayıVerileri[[#This Row],[Tahmin \nKapanışı]] <>\"\",IF(MüşteriAdayıVerileri[[#This Row],[Tahmin \nKapanışı]]= \"Eylül\",MüşteriAdayıVerileri[Ağırlıklı \nTahmin],0),\"\"),\"\")","v":""},{"$f":"IFERROR(IF(MüşteriAdayıVerileri[[#This Row],[Tahmin \nKapanışı]] <>\"\",IF(MüşteriAdayıVerileri[[#This Row],[Tahmin \nKapanışı]]= \"Ekim\",MüşteriAdayıVerileri[Ağırlıklı \nTahmin],0),\"\"),\"\")","v":""},{"$f":"IFERROR(IF(MüşteriAdayıVerileri[[#This Row],[Tahmin \nKapanışı]] <>\"\",IF(MüşteriAdayıVerileri[[#This Row],[Tahmin \nKapanışı]]= \"Kasım\",MüşteriAdayıVerileri[Ağırlıklı \nTahmin],0),\"\"),\"\")","v":""},{"$f":"IFERROR(IF(MüşteriAdayıVerileri[[#This Row],[Tahmin \nKapanışı]] <>\"\",IF(MüşteriAdayıVerileri[[#This Row],[Tahmin \nKapanışı]]= \"Aralık\",MüşteriAdayıVerileri[Ağırlıklı \nTahmin],0),\"\"),\"\")","v":""}]
[null,{"$f":"IFERROR(IF(AND(MüşteriAdayıVerileri[[#This Row],[Müşteri Adayı Adı]]<> \"\", ROW(TahminEdilenSatışlar[Müşteri Adayı adı])<>SonGirdi),MüşteriAdayıVerileri[Müşteri Adayı Adı], \"\"),\"\")","v":""},{"$f":"IFERROR(IF(MüşteriAdayıVerileri[[#This Row],[Tahmin \nKapanışı]] <>\"\",IF(MüşteriAdayıVerileri[[#This Row],[Tahmin \nKapanışı]]= \"Ocak\",MüşteriAdayıVerileri[Ağırlıklı \nTahmin],0),\"\"),\"\")","v":""},{"$f":"IFERROR(IF(MüşteriAdayıVerileri[[#This Row],[Tahmin \nKapanışı]] <>\"\",IF(MüşteriAdayıVerileri[[#This Row],[Tahmin \nKapanışı]]= \"Şubat\",MüşteriAdayıVerileri[Ağırlıklı \nTahmin],0),\"\"),\"\")","v":""},{"$f":"IFERROR(IF(MüşteriAdayıVerileri[[#This Row],[Tahmin \nKapanışı]] <>\"\",IF(MüşteriAdayıVerileri[[#This Row],[Tahmin \nKapanışı]]= \"Mart\",MüşteriAdayıVerileri[Ağırlıklı \nTahmin],0),\"\"),\"\")","v":""},{"$f":"IFERROR(IF(MüşteriAdayıVerileri[[#This Row],[Tahmin \nKapanışı]] <>\"\",IF(MüşteriAdayıVerileri[[#This Row],[Tahmin \nKapanışı]]= \"Nisan\",MüşteriAdayıVerileri[Ağırlıklı \nTahmin],0),\"\"),\"\")","v":""},{"$f":"IFERROR(IF(MüşteriAdayıVerileri[[#This Row],[Tahmin \nKapanışı]] <>\"\",IF(MüşteriAdayıVerileri[[#This Row],[Tahmin \nKapanışı]]= \"Mayıs\",MüşteriAdayıVerileri[Ağırlıklı \nTahmin],0),\"\"),\"\")","v":""},{"$f":"IFERROR(IF(MüşteriAdayıVerileri[[#This Row],[Tahmin \nKapanışı]] <>\"\",IF(MüşteriAdayıVerileri[[#This Row],[Tahmin \nKapanışı]]= \"Haziran\",MüşteriAdayıVerileri[Ağırlıklı \nTahmin],0),\"\"),\"\")","v":""},{"$f":"IFERROR(IF(MüşteriAdayıVerileri[[#This Row],[Tahmin \nKapanışı]] <>\"\",IF(MüşteriAdayıVerileri[[#This Row],[Tahmin \nKapanışı]]= \"Temmuz\",MüşteriAdayıVerileri[Ağırlıklı \nTahmin],0),\"\"),\"\")","v":""},{"$f":"IFERROR(IF(MüşteriAdayıVerileri[[#This Row],[Tahmin \nKapanışı]] <>\"\",IF(MüşteriAdayıVerileri[[#This Row],[Tahmin \nKapanışı]]= \"Ağustos\",MüşteriAdayıVerileri[Ağırlıklı \nTahmin],0),\"\"),\"\")","v":""},{"$f":"IFERROR(IF(MüşteriAdayıVerileri[[#This Row],[Tahmin \nKapanışı]] <>\"\",IF(MüşteriAdayıVerileri[[#This Row],[Tahmin \nKapanışı]]= \"Eylül\",MüşteriAdayıVerileri[Ağırlıklı \nTahmin],0),\"\"),\"\")","v":""},{"$f":"IFERROR(IF(MüşteriAdayıVerileri[[#This Row],[Tahmin \nKapanışı]] <>\"\",IF(MüşteriAdayıVerileri[[#This Row],[Tahmin \nKapanışı]]= \"Ekim\",MüşteriAdayıVerileri[Ağırlıklı \nTahmin],0),\"\"),\"\")","v":""},{"$f":"IFERROR(IF(MüşteriAdayıVerileri[[#This Row],[Tahmin \nKapanışı]] <>\"\",IF(MüşteriAdayıVerileri[[#This Row],[Tahmin \nKapanışı]]= \"Kasım\",MüşteriAdayıVerileri[Ağırlıklı \nTahmin],0),\"\"),\"\")","v":""},{"$f":"IFERROR(IF(MüşteriAdayıVerileri[[#This Row],[Tahmin \nKapanışı]] <>\"\",IF(MüşteriAdayıVerileri[[#This Row],[Tahmin \nKapanışı]]= \"Aralık\",MüşteriAdayıVerileri[Ağırlıklı \nTahmin],0),\"\"),\"\")","v":""}]
[null,{"$f":"IFERROR(IF(AND(MüşteriAdayıVerileri[[#This Row],[Müşteri Adayı Adı]]<> \"\", ROW(TahminEdilenSatışlar[Müşteri Adayı adı])<>SonGirdi),MüşteriAdayıVerileri[Müşteri Adayı Adı], \"\"),\"\")","v":""},{"$f":"IFERROR(IF(MüşteriAdayıVerileri[[#This Row],[Tahmin \nKapanışı]] <>\"\",IF(MüşteriAdayıVerileri[[#This Row],[Tahmin \nKapanışı]]= \"Ocak\",MüşteriAdayıVerileri[Ağırlıklı \nTahmin],0),\"\"),\"\")","v":""},{"$f":"IFERROR(IF(MüşteriAdayıVerileri[[#This Row],[Tahmin \nKapanışı]] <>\"\",IF(MüşteriAdayıVerileri[[#This Row],[Tahmin \nKapanışı]]= \"Şubat\",MüşteriAdayıVerileri[Ağırlıklı \nTahmin],0),\"\"),\"\")","v":""},{"$f":"IFERROR(IF(MüşteriAdayıVerileri[[#This Row],[Tahmin \nKapanışı]] <>\"\",IF(MüşteriAdayıVerileri[[#This Row],[Tahmin \nKapanışı]]= \"Mart\",MüşteriAdayıVerileri[Ağırlıklı \nTahmin],0),\"\"),\"\")","v":""},{"$f":"IFERROR(IF(MüşteriAdayıVerileri[[#This Row],[Tahmin \nKapanışı]] <>\"\",IF(MüşteriAdayıVerileri[[#This Row],[Tahmin \nKapanışı]]= \"Nisan\",MüşteriAdayıVerileri[Ağırlıklı \nTahmin],0),\"\"),\"\")","v":""},{"$f":"IFERROR(IF(MüşteriAdayıVerileri[[#This Row],[Tahmin \nKapanışı]] <>\"\",IF(MüşteriAdayıVerileri[[#This Row],[Tahmin \nKapanışı]]= \"Mayıs\",MüşteriAdayıVerileri[Ağırlıklı \nTahmin],0),\"\"),\"\")","v":""},{"$f":"IFERROR(IF(MüşteriAdayıVerileri[[#This Row],[Tahmin \nKapanışı]] <>\"\",IF(MüşteriAdayıVerileri[[#This Row],[Tahmin \nKapanışı]]= \"Haziran\",MüşteriAdayıVerileri[Ağırlıklı \nTahmin],0),\"\"),\"\")","v":""},{"$f":"IFERROR(IF(MüşteriAdayıVerileri[[#This Row],[Tahmin \nKapanışı]] <>\"\",IF(MüşteriAdayıVerileri[[#This Row],[Tahmin \nKapanışı]]= \"Temmuz\",MüşteriAdayıVerileri[Ağırlıklı \nTahmin],0),\"\"),\"\")","v":""},{"$f":"IFERROR(IF(MüşteriAdayıVerileri[[#This Row],[Tahmin \nKapanışı]] <>\"\",IF(MüşteriAdayıVerileri[[#This Row],[Tahmin \nKapanışı]]= \"Ağustos\",MüşteriAdayıVerileri[Ağırlıklı \nTahmin],0),\"\"),\"\")","v":""},{"$f":"IFERROR(IF(MüşteriAdayıVerileri[[#This Row],[Tahmin \nKapanışı]] <>\"\",IF(MüşteriAdayıVerileri[[#This Row],[Tahmin \nKapanışı]]= \"Eylül\",MüşteriAdayıVerileri[Ağırlıklı \nTahmin],0),\"\"),\"\")","v":""},{"$f":"IFERROR(IF(MüşteriAdayıVerileri[[#This Row],[Tahmin \nKapanışı]] <>\"\",IF(MüşteriAdayıVerileri[[#This Row],[Tahmin \nKapanışı]]= \"Ekim\",MüşteriAdayıVerileri[Ağırlıklı \nTahmin],0),\"\"),\"\")","v":""},{"$f":"IFERROR(IF(MüşteriAdayıVerileri[[#This Row],[Tahmin \nKapanışı]] <>\"\",IF(MüşteriAdayıVerileri[[#This Row],[Tahmin \nKapanışı]]= \"Kasım\",MüşteriAdayıVerileri[Ağırlıklı \nTahmin],0),\"\"),\"\")","v":""},{"$f":"IFERROR(IF(MüşteriAdayıVerileri[[#This Row],[Tahmin \nKapanışı]] <>\"\",IF(MüşteriAdayıVerileri[[#This Row],[Tahmin \nKapanışı]]= \"Aralık\",MüşteriAdayıVerileri[Ağırlıklı \nTahmin],0),\"\"),\"\")","v":""}]
[null,{"$f":"IFERROR(IF(AND(MüşteriAdayıVerileri[[#This Row],[Müşteri Adayı Adı]]<> \"\", ROW(TahminEdilenSatışlar[Müşteri Adayı adı])<>SonGirdi),MüşteriAdayıVerileri[Müşteri Adayı Adı], \"\"),\"\")","v":""},{"$f":"IFERROR(IF(MüşteriAdayıVerileri[[#This Row],[Tahmin \nKapanışı]] <>\"\",IF(MüşteriAdayıVerileri[[#This Row],[Tahmin \nKapanışı]]= \"Ocak\",MüşteriAdayıVerileri[Ağırlıklı \nTahmin],0),\"\"),\"\")","v":""},{"$f":"IFERROR(IF(MüşteriAdayıVerileri[[#This Row],[Tahmin \nKapanışı]] <>\"\",IF(MüşteriAdayıVerileri[[#This Row],[Tahmin \nKapanışı]]= \"Şubat\",MüşteriAdayıVerileri[Ağırlıklı \nTahmin],0),\"\"),\"\")","v":""},{"$f":"IFERROR(IF(MüşteriAdayıVerileri[[#This Row],[Tahmin \nKapanışı]] <>\"\",IF(MüşteriAdayıVerileri[[#This Row],[Tahmin \nKapanışı]]= \"Mart\",MüşteriAdayıVerileri[Ağırlıklı \nTahmin],0),\"\"),\"\")","v":""},{"$f":"IFERROR(IF(MüşteriAdayıVerileri[[#This Row],[Tahmin \nKapanışı]] <>\"\",IF(MüşteriAdayıVerileri[[#This Row],[Tahmin \nKapanışı]]= \"Nisan\",MüşteriAdayıVerileri[Ağırlıklı \nTahmin],0),\"\"),\"\")","v":""},{"$f":"IFERROR(IF(MüşteriAdayıVerileri[[#This Row],[Tahmin \nKapanışı]] <>\"\",IF(MüşteriAdayıVerileri[[#This Row],[Tahmin \nKapanışı]]= \"Mayıs\",MüşteriAdayıVerileri[Ağırlıklı \nTahmin],0),\"\"),\"\")","v":""},{"$f":"IFERROR(IF(MüşteriAdayıVerileri[[#This Row],[Tahmin \nKapanışı]] <>\"\",IF(MüşteriAdayıVerileri[[#This Row],[Tahmin \nKapanışı]]= \"Haziran\",MüşteriAdayıVerileri[Ağırlıklı \nTahmin],0),\"\"),\"\")","v":""},{"$f":"IFERROR(IF(MüşteriAdayıVerileri[[#This Row],[Tahmin \nKapanışı]] <>\"\",IF(MüşteriAdayıVerileri[[#This Row],[Tahmin \nKapanışı]]= \"Temmuz\",MüşteriAdayıVerileri[Ağırlıklı \nTahmin],0),\"\"),\"\")","v":""},{"$f":"IFERROR(IF(MüşteriAdayıVerileri[[#This Row],[Tahmin \nKapanışı]] <>\"\",IF(MüşteriAdayıVerileri[[#This Row],[Tahmin \nKapanışı]]= \"Ağustos\",MüşteriAdayıVerileri[Ağırlıklı \nTahmin],0),\"\"),\"\")","v":""},{"$f":"IFERROR(IF(MüşteriAdayıVerileri[[#This Row],[Tahmin \nKapanışı]] <>\"\",IF(MüşteriAdayıVerileri[[#This Row],[Tahmin \nKapanışı]]= \"Eylül\",MüşteriAdayıVerileri[Ağırlıklı \nTahmin],0),\"\"),\"\")","v":""},{"$f":"IFERROR(IF(MüşteriAdayıVerileri[[#This Row],[Tahmin \nKapanışı]] <>\"\",IF(MüşteriAdayıVerileri[[#This Row],[Tahmin \nKapanışı]]= \"Ekim\",MüşteriAdayıVerileri[Ağırlıklı \nTahmin],0),\"\"),\"\")","v":""},{"$f":"IFERROR(IF(MüşteriAdayıVerileri[[#This Row],[Tahmin \nKapanışı]] <>\"\",IF(MüşteriAdayıVerileri[[#This Row],[Tahmin \nKapanışı]]= \"Kasım\",MüşteriAdayıVerileri[Ağırlıklı \nTahmin],0),\"\"),\"\")","v":""},{"$f":"IFERROR(IF(MüşteriAdayıVerileri[[#This Row],[Tahmin \nKapanışı]] <>\"\",IF(MüşteriAdayıVerileri[[#This Row],[Tahmin \nKapanışı]]= \"Aralık\",MüşteriAdayıVerileri[Ağırlıklı \nTahmin],0),\"\"),\"\")","v":""}]
[null,{"$f":"IFERROR(IF(AND(MüşteriAdayıVerileri[[#This Row],[Müşteri Adayı Adı]]<> \"\", ROW(TahminEdilenSatışlar[Müşteri Adayı adı])<>SonGirdi),MüşteriAdayıVerileri[Müşteri Adayı Adı], \"\"),\"\")","v":""},{"$f":"IFERROR(IF(MüşteriAdayıVerileri[[#This Row],[Tahmin \nKapanışı]] <>\"\",IF(MüşteriAdayıVerileri[[#This Row],[Tahmin \nKapanışı]]= \"Ocak\",MüşteriAdayıVerileri[Ağırlıklı \nTahmin],0),\"\"),\"\")","v":""},{"$f":"IFERROR(IF(MüşteriAdayıVerileri[[#This Row],[Tahmin \nKapanışı]] <>\"\",IF(MüşteriAdayıVerileri[[#This Row],[Tahmin \nKapanışı]]= \"Şubat\",MüşteriAdayıVerileri[Ağırlıklı \nTahmin],0),\"\"),\"\")","v":""},{"$f":"IFERROR(IF(MüşteriAdayıVerileri[[#This Row],[Tahmin \nKapanışı]] <>\"\",IF(MüşteriAdayıVerileri[[#This Row],[Tahmin \nKapanışı]]= \"Mart\",MüşteriAdayıVerileri[Ağırlıklı \nTahmin],0),\"\"),\"\")","v":""},{"$f":"IFERROR(IF(MüşteriAdayıVerileri[[#This Row],[Tahmin \nKapanışı]] <>\"\",IF(MüşteriAdayıVerileri[[#This Row],[Tahmin \nKapanışı]]= \"Nisan\",MüşteriAdayıVerileri[Ağırlıklı \nTahmin],0),\"\"),\"\")","v":""},{"$f":"IFERROR(IF(MüşteriAdayıVerileri[[#This Row],[Tahmin \nKapanışı]] <>\"\",IF(MüşteriAdayıVerileri[[#This Row],[Tahmin \nKapanışı]]= \"Mayıs\",MüşteriAdayıVerileri[Ağırlıklı \nTahmin],0),\"\"),\"\")","v":""},{"$f":"IFERROR(IF(MüşteriAdayıVerileri[[#This Row],[Tahmin \nKapanışı]] <>\"\",IF(MüşteriAdayıVerileri[[#This Row],[Tahmin \nKapanışı]]= \"Haziran\",MüşteriAdayıVerileri[Ağırlıklı \nTahmin],0),\"\"),\"\")","v":""},{"$f":"IFERROR(IF(MüşteriAdayıVerileri[[#This Row],[Tahmin \nKapanışı]] <>\"\",IF(MüşteriAdayıVerileri[[#This Row],[Tahmin \nKapanışı]]= \"Temmuz\",MüşteriAdayıVerileri[Ağırlıklı \nTahmin],0),\"\"),\"\")","v":""},{"$f":"IFERROR(IF(MüşteriAdayıVerileri[[#This Row],[Tahmin \nKapanışı]] <>\"\",IF(MüşteriAdayıVerileri[[#This Row],[Tahmin \nKapanışı]]= \"Ağustos\",MüşteriAdayıVerileri[Ağırlıklı \nTahmin],0),\"\"),\"\")","v":""},{"$f":"IFERROR(IF(MüşteriAdayıVerileri[[#This Row],[Tahmin \nKapanışı]] <>\"\",IF(MüşteriAdayıVerileri[[#This Row],[Tahmin \nKapanışı]]= \"Eylül\",MüşteriAdayıVerileri[Ağırlıklı \nTahmin],0),\"\"),\"\")","v":""},{"$f":"IFERROR(IF(MüşteriAdayıVerileri[[#This Row],[Tahmin \nKapanışı]] <>\"\",IF(MüşteriAdayıVerileri[[#This Row],[Tahmin \nKapanışı]]= \"Ekim\",MüşteriAdayıVerileri[Ağırlıklı \nTahmin],0),\"\"),\"\")","v":""},{"$f":"IFERROR(IF(MüşteriAdayıVerileri[[#This Row],[Tahmin \nKapanışı]] <>\"\",IF(MüşteriAdayıVerileri[[#This Row],[Tahmin \nKapanışı]]= \"Kasım\",MüşteriAdayıVerileri[Ağırlıklı \nTahmin],0),\"\"),\"\")","v":""},{"$f":"IFERROR(IF(MüşteriAdayıVerileri[[#This Row],[Tahmin \nKapanışı]] <>\"\",IF(MüşteriAdayıVerileri[[#This Row],[Tahmin \nKapanışı]]= \"Aralık\",MüşteriAdayıVerileri[Ağırlıklı \nTahmin],0),\"\"),\"\")","v":""}]
[null,{"$f":"IFERROR(IF(AND(MüşteriAdayıVerileri[[#This Row],[Müşteri Adayı Adı]]<> \"\", ROW(TahminEdilenSatışlar[Müşteri Adayı adı])<>SonGirdi),MüşteriAdayıVerileri[Müşteri Adayı Adı], \"\"),\"\")","v":""},{"$f":"IFERROR(IF(MüşteriAdayıVerileri[[#This Row],[Tahmin \nKapanışı]] <>\"\",IF(MüşteriAdayıVerileri[[#This Row],[Tahmin \nKapanışı]]= \"Ocak\",MüşteriAdayıVerileri[Ağırlıklı \nTahmin],0),\"\"),\"\")","v":""},{"$f":"IFERROR(IF(MüşteriAdayıVerileri[[#This Row],[Tahmin \nKapanışı]] <>\"\",IF(MüşteriAdayıVerileri[[#This Row],[Tahmin \nKapanışı]]= \"Şubat\",MüşteriAdayıVerileri[Ağırlıklı \nTahmin],0),\"\"),\"\")","v":""},{"$f":"IFERROR(IF(MüşteriAdayıVerileri[[#This Row],[Tahmin \nKapanışı]] <>\"\",IF(MüşteriAdayıVerileri[[#This Row],[Tahmin \nKapanışı]]= \"Mart\",MüşteriAdayıVerileri[Ağırlıklı \nTahmin],0),\"\"),\"\")","v":""},{"$f":"IFERROR(IF(MüşteriAdayıVerileri[[#This Row],[Tahmin \nKapanışı]] <>\"\",IF(MüşteriAdayıVerileri[[#This Row],[Tahmin \nKapanışı]]= \"Nisan\",MüşteriAdayıVerileri[Ağırlıklı \nTahmin],0),\"\"),\"\")","v":""},{"$f":"IFERROR(IF(MüşteriAdayıVerileri[[#This Row],[Tahmin \nKapanışı]] <>\"\",IF(MüşteriAdayıVerileri[[#This Row],[Tahmin \nKapanışı]]= \"Mayıs\",MüşteriAdayıVerileri[Ağırlıklı \nTahmin],0),\"\"),\"\")","v":""},{"$f":"IFERROR(IF(MüşteriAdayıVerileri[[#This Row],[Tahmin \nKapanışı]] <>\"\",IF(MüşteriAdayıVerileri[[#This Row],[Tahmin \nKapanışı]]= \"Haziran\",MüşteriAdayıVerileri[Ağırlıklı \nTahmin],0),\"\"),\"\")","v":""},{"$f":"IFERROR(IF(MüşteriAdayıVerileri[[#This Row],[Tahmin \nKapanışı]] <>\"\",IF(MüşteriAdayıVerileri[[#This Row],[Tahmin \nKapanışı]]= \"Temmuz\",MüşteriAdayıVerileri[Ağırlıklı \nTahmin],0),\"\"),\"\")","v":""},{"$f":"IFERROR(IF(MüşteriAdayıVerileri[[#This Row],[Tahmin \nKapanışı]] <>\"\",IF(MüşteriAdayıVerileri[[#This Row],[Tahmin \nKapanışı]]= \"Ağustos\",MüşteriAdayıVerileri[Ağırlıklı \nTahmin],0),\"\"),\"\")","v":""},{"$f":"IFERROR(IF(MüşteriAdayıVerileri[[#This Row],[Tahmin \nKapanışı]] <>\"\",IF(MüşteriAdayıVerileri[[#This Row],[Tahmin \nKapanışı]]= \"Eylül\",MüşteriAdayıVerileri[Ağırlıklı \nTahmin],0),\"\"),\"\")","v":""},{"$f":"IFERROR(IF(MüşteriAdayıVerileri[[#This Row],[Tahmin \nKapanışı]] <>\"\",IF(MüşteriAdayıVerileri[[#This Row],[Tahmin \nKapanışı]]= \"Ekim\",MüşteriAdayıVerileri[Ağırlıklı \nTahmin],0),\"\"),\"\")","v":""},{"$f":"IFERROR(IF(MüşteriAdayıVerileri[[#This Row],[Tahmin \nKapanışı]] <>\"\",IF(MüşteriAdayıVerileri[[#This Row],[Tahmin \nKapanışı]]= \"Kasım\",MüşteriAdayıVerileri[Ağırlıklı \nTahmin],0),\"\"),\"\")","v":""},{"$f":"IFERROR(IF(MüşteriAdayıVerileri[[#This Row],[Tahmin \nKapanışı]] <>\"\",IF(MüşteriAdayıVerileri[[#This Row],[Tahmin \nKapanışı]]= \"Aralık\",MüşteriAdayıVerileri[Ağırlıklı \nTahmin],0),\"\"),\"\")","v":""}]
[null,{"$f":"IFERROR(IF(AND(MüşteriAdayıVerileri[[#This Row],[Müşteri Adayı Adı]]<> \"\", ROW(TahminEdilenSatışlar[Müşteri Adayı adı])<>SonGirdi),MüşteriAdayıVerileri[Müşteri Adayı Adı], \"\"),\"\")","v":""},{"$f":"IFERROR(IF(MüşteriAdayıVerileri[[#This Row],[Tahmin \nKapanışı]] <>\"\",IF(MüşteriAdayıVerileri[[#This Row],[Tahmin \nKapanışı]]= \"Ocak\",MüşteriAdayıVerileri[Ağırlıklı \nTahmin],0),\"\"),\"\")","v":""},{"$f":"IFERROR(IF(MüşteriAdayıVerileri[[#This Row],[Tahmin \nKapanışı]] <>\"\",IF(MüşteriAdayıVerileri[[#This Row],[Tahmin \nKapanışı]]= \"Şubat\",MüşteriAdayıVerileri[Ağırlıklı \nTahmin],0),\"\"),\"\")","v":""},{"$f":"IFERROR(IF(MüşteriAdayıVerileri[[#This Row],[Tahmin \nKapanışı]] <>\"\",IF(MüşteriAdayıVerileri[[#This Row],[Tahmin \nKapanışı]]= \"Mart\",MüşteriAdayıVerileri[Ağırlıklı \nTahmin],0),\"\"),\"\")","v":""},{"$f":"IFERROR(IF(MüşteriAdayıVerileri[[#This Row],[Tahmin \nKapanışı]] <>\"\",IF(MüşteriAdayıVerileri[[#This Row],[Tahmin \nKapanışı]]= \"Nisan\",MüşteriAdayıVerileri[Ağırlıklı \nTahmin],0),\"\"),\"\")","v":""},{"$f":"IFERROR(IF(MüşteriAdayıVerileri[[#This Row],[Tahmin \nKapanışı]] <>\"\",IF(MüşteriAdayıVerileri[[#This Row],[Tahmin \nKapanışı]]= \"Mayıs\",MüşteriAdayıVerileri[Ağırlıklı \nTahmin],0),\"\"),\"\")","v":""},{"$f":"IFERROR(IF(MüşteriAdayıVerileri[[#This Row],[Tahmin \nKapanışı]] <>\"\",IF(MüşteriAdayıVerileri[[#This Row],[Tahmin \nKapanışı]]= \"Haziran\",MüşteriAdayıVerileri[Ağırlıklı \nTahmin],0),\"\"),\"\")","v":""},{"$f":"IFERROR(IF(MüşteriAdayıVerileri[[#This Row],[Tahmin \nKapanışı]] <>\"\",IF(MüşteriAdayıVerileri[[#This Row],[Tahmin \nKapanışı]]= \"Temmuz\",MüşteriAdayıVerileri[Ağırlıklı \nTahmin],0),\"\"),\"\")","v":""},{"$f":"IFERROR(IF(MüşteriAdayıVerileri[[#This Row],[Tahmin \nKapanışı]] <>\"\",IF(MüşteriAdayıVerileri[[#This Row],[Tahmin \nKapanışı]]= \"Ağustos\",MüşteriAdayıVerileri[Ağırlıklı \nTahmin],0),\"\"),\"\")","v":""},{"$f":"IFERROR(IF(MüşteriAdayıVerileri[[#This Row],[Tahmin \nKapanışı]] <>\"\",IF(MüşteriAdayıVerileri[[#This Row],[Tahmin \nKapanışı]]= \"Eylül\",MüşteriAdayıVerileri[Ağırlıklı \nTahmin],0),\"\"),\"\")","v":""},{"$f":"IFERROR(IF(MüşteriAdayıVerileri[[#This Row],[Tahmin \nKapanışı]] <>\"\",IF(MüşteriAdayıVerileri[[#This Row],[Tahmin \nKapanışı]]= \"Ekim\",MüşteriAdayıVerileri[Ağırlıklı \nTahmin],0),\"\"),\"\")","v":""},{"$f":"IFERROR(IF(MüşteriAdayıVerileri[[#This Row],[Tahmin \nKapanışı]] <>\"\",IF(MüşteriAdayıVerileri[[#This Row],[Tahmin \nKapanışı]]= \"Kasım\",MüşteriAdayıVerileri[Ağırlıklı \nTahmin],0),\"\"),\"\")","v":""},{"$f":"IFERROR(IF(MüşteriAdayıVerileri[[#This Row],[Tahmin \nKapanışı]] <>\"\",IF(MüşteriAdayıVerileri[[#This Row],[Tahmin \nKapanışı]]= \"Aralık\",MüşteriAdayıVerileri[Ağırlıklı \nTahmin],0),\"\"),\"\")","v":""}]
[null,"Toplam",{"$f":"SUBTOTAL(109,TahminEdilenSatışlar[Ocak \nTahmin])","v":{"v":270000,"d":"₺270,000"}},{"$f":"SUBTOTAL(109,TahminEdilenSatışlar[Şubat \nTahmin])","v":{"v":20000,"d":"₺20,000"}},{"$f":"SUBTOTAL(109,TahminEdilenSatışlar[Mart \nTahmin])","v":{"v":20000,"d":"₺20,000"}},{"$f":"SUBTOTAL(109,TahminEdilenSatışlar[Nisan \nTahmin])","v":{"v":0,"d":"₺0"}},{"$f":"SUBTOTAL(109,TahminEdilenSatışlar[May \nTahmin])","v":{"v":0,"d":"₺0"}},{"$f":"SUBTOTAL(109,TahminEdilenSatışlar[Haziran \nTahmin])","v":{"v":0,"d":"₺0"}},{"$f":"SUBTOTAL(109,TahminEdilenSatışlar[Temmuz Tahmini])","v":{"v":0,"d":"₺0"}},{"$f":"SUBTOTAL(109,TahminEdilenSatışlar[Ağustos \nTahmin])","v":{"v":0,"d":"₺0"}},{"$f":"SUBTOTAL(109,TahminEdilenSatışlar[Eylül \nTahmin])","v":{"v":0,"d":"₺0"}},{"$f":"SUBTOTAL(109,TahminEdilenSatışlar[Ekim \nTahmin])","v":{"v":0,"d":"₺0"}},{"$f":"SUBTOTAL(109,TahminEdilenSatışlar[Kasım \nTahmin])","v":{"v":0,"d":"₺0"}},{"$f":"SUBTOTAL(109,TahminEdilenSatışlar[Aralık \nTahmin])","v":{"v":0,"d":"₺0"}}]
[null,"Birikmeli Toplam",{"$f":"C20","v":{"v":270000,"d":"₺270,000"}},{"$f":"C21+D20","v":{"v":290000,"d":"₺290,000"}},{"$f":"D21+E20","v":{"v":310000,"d":"₺310,000"}},{"v":310000,"d":"₺310,000"},{"v":310000,"d":"₺310,000"},{"v":310000,"d":"₺310,000"},{"v":310000,"d":"₺310,000"},{"v":310000,"d":"₺310,000"},{"v":310000,"d":"₺310,000"},{"v":310000,"d":"₺310,000"},{"v":310000,"d":"₺310,000"},{"v":310000,"d":"₺310,000"}]

{"sheet":"Aylık Ağırlıklı Tahmin","index":2,"n_rows":3,"n_cols":2,"rows_kept":3}
[null,{"$f":"Şirket_Adı","v":"Şirket Adı"}]
[null,"Aylık Ağırlıklı Tahmin"]
[null," "]